[Event "Azerbaijan-ch 1st League 2025"]
[Site "Baku"]
[Date "2025.01.09"]
[Round "4.14"]
[White "Salimov, Shovkat"]
[Black "Allajov, Ramil"]
[Result "1-0"]
[Annotator "TA"]
[ECO "B90"]
[WhiteElo "1977"]
[BlackElo "2079"]
[PlyCount "149"]
[EventDate "2025.01.05"]
[EventType "swiss"]
[EventCountry "AZE"]
[SourceTitle "playchess.com"]
[Source "ChessBase"]
[SourceQuality "1"]
[TimeControl "40/5400+30:1800+30"]

{[%evp 33,149,0,33,32,73,68,66,62,64,64,81,62,57,57,57,50,50,50,57,57,79,87,87,56,61,45,48,41,41,42,97,74,131,139,114,79,65,77,377,366,473,477,362,262,165,28,86,0,50,58,48,-55,0,0,0,0,0,0,14,26,46,16,626,577,581,587,579,545,539,0,0,0,473,463,980,803,803,720,971,971,972,968,950,864,876,1354,1077,1056,1049,848,1052,1039,993,978,801,646,784,671,779,762,779,779,776,793,870,832,1113,1090,1277,1129,1248,1156,1208,1181,951,742,1620,1617]} 1. e4 {[%emt 0:00:03]} c5 {[%emt 0:00:13]} 2. Nf3 {[%emt 0:00:08]} d6 {[%emt 0:00:20]} 3. d4 {[%emt 0:00:12]} cxd4 {[%emt 0:00:03]} 4. Nxd4 {[%emt 0:00:05]} Nf6 {[%emt 0:00:03]} 5. Nc3 {[%emt 0:00:06]} a6 {[%emt 0:00:15]} 6. h3 {[%emt 0:00:18]} e5 {[%emt 0:04:58]} 7. Nb3 {[%emt 0:00:17]} Be6 {[%emt 0:00:01]} 8. f4 {[%emt 0:00:35]} Qc7 {[%emt 0:00:15]} 9. f5 {[%emt 0:30:20]} Bc4 {[%emt 0:00:11]} 10. Bg5 {[%emt 0:01:23]} Nbd7 {[%emt 0:01:06]} 11. Qf3 {[%emt 0:03:00]} b5 {[%emt 0:03:02]} 12. Bxc4 {[%emt 0:10:26]} Qxc4 {[%emt 0:01:29]} 13. Nd2 {[%emt 0:02:11]} Qc6 {[%emt 0:02:37]} 14. a3 {[%emt 0:02:04]} Rb8 {[%emt 0:02:16]} 15. O-O {[%emt 0:01:00]} Be7 {[%emt 0:00:09]} 16. Kh1 {[%emt 0:04:02]} h6 {[%emt 0:04:43]} 17. Bh4 {[%emt 0:00:52]} Nb6 {[%emt 0:00:17]} 18. Rfd1 {[%emt 0:01:40]} Nfd7 {[%emt 0:12:26]} 19. Bxe7 {[%emt 0:00:26]} Kxe7 {[%emt 0:01:55]} 20. Nf1 {[%emt 0:02:57]} Nf6 {[%emt 0:00:38]} 21. Ne3 {[%emt 0:00:24]} Rhc8 {[%emt 0:03:42]} 22. Ncd5+ {[%emt 0:14:14]} Nbxd5 {[%emt 0:02:48]} 23. Nxd5+ {[%emt 0:00:14]} Nxd5 {[%emt 0:04:10]} 24. Rxd5 {[%emt 0:00:02]} f6 {[%emt 0:01:30]} (24... Qxc2 $2 25. f6+ Kf8 26. fxg7+ (26. Rxd6 g6 $18) 26... Kg8 27. Rxd6 $18 (27. Rf1 Rb7 $18)) 25. c3 {[%emt 0:02:20]} Rb6 {[%emt 0:01:34]} 26. Rad1 {[%emt 0:00:32]} Qe8 {[%emt 0:01:53]} 27. Qg3 {[%emt 0:05:25]} Qf7 {[%emt 0:02:21]} 28. R1d3 {[%emt 0:01:11]} Rcc6 {[%emt 0:01:39]} 29. Qg4 {[%emt 0:01:14]} Kf8 {[%emt 0:00:37]} 30. Qd1 {[%emt 0:00:32]} Qc7 {[%emt 0:01:19]} 31. Rd2 {[%emt 0:02:42]} a5 {[%emt 0:15:23]} (31... Kg8 $14) 32. Kh2 {[%emt 0:02:26]} Qb8 {[%emt 0:03:06]} (32... Kg8 $142) 33. a4 $1 $16 {[%emt 0:04:48]} b4 {[%emt 0:04:07]} 34. cxb4 {[%emt 0:00:18]} Rxb4 {[%emt 0:01:04]} 35. Rxa5 {[%emt 0:05:17]} Rxe4 $2 {[%emt 0:02:05][%mdl 8192]} (35... Kg8 $16 {was worth a try.}) 36. Rb5 $18 {[%emt 0:00:21]} Qd8 {[%emt 0:05:34]} 37. Qb3 {[%emt 0:00:37]} Rec4 {[%emt 0:02:57]} 38. Rb8 {[%emt 0:02:44]} Rc8 {[%emt 0:00:06]} 39. Rb7 {[%emt 0:00:36]} (39. Qxc4 $18 Rxb8 40. Qe6) 39... d5 $11 {[%emt 0:00:59] [#]} 40. Qb5 {[%emt 0:00:00]} (40. Qa3+ $1 $16 Kg8 41. a5) 40... d4 {[%emt 0:00:00]} (40... R4c5 $11 41. Qd7 Qxd7 42. Rxd7 d4) 41. Rd7 $1 $14 {[%emt 0:02:47]} Qe8 {[%emt 0:02:20]} 42. Qb7 {[%emt 0:05:11]} ({White must play} 42. Qd5 $1 $14 R4c5 43. Qb7) 42... Rb8 {[%emt 0:08:46]} (42... e4 $15 43. Rd1 (43. Rxg7 d3 $17) (43. R7xd4 Rxd4 44. Rxd4 Qe5+ 45. g3 Rc2+ 46. Kh1 Rc1+ 47. Kg2 Qxd4 $19) 43... e3 (43... Rxa4 44. b3 $11)) 43. Qd5 $11 {[%emt 0:02:02]} Rcc8 $1 {[%emt 0:07:18]} 44. Rd3 {[%emt 0:09:59]} Rd8 $1 {[%emt 0:02:40]} 45. Qc5+ $1 {[%emt 0:00:08]} Kg8 {[%emt 0:00:06]} 46. Re7 $1 {[%emt 0:00:20]} (46. R3xd4 $2 Rxd7 47. Rg4 Rxb2 $19) 46... Qf8 $1 {[%emt 0:01:32]} (46... Qxa4 47. Rxg7+ Kxg7 48. Qe7+ Kh8 49. Qxf6+ Kh7 50. Qg6+ Kh8 51. Qxh6+ Kg8 52. Rg3+ Kf7 53. Rg7+ Kf8 54. Qh8#) 47. Rg3 $1 {[%emt 0:05:40]} Kh8 $2 {[%emt 0:01:49][%mdl 8192] [#]} (47... Rxb2 $2 48. Qc7 g5 49. fxg6 $18) (47... Re8 $11 48. Rexg7+ Qxg7) 48. Rgxg7 $1 $18 {[%emt 0:05:04]} Qxg7 {[%emt 0:00:09]} 49. Rxg7 {[%emt 0:00:05]} Kxg7 {[%emt 0:00:04]} 50. Qe7+ {[%emt 0:00:04]} Kg8 {[%emt 0:00:12]} 51. Qe6+ {[%emt 0:00:08]} Kg7 $1 {[%emt 0:00:05]} 52. Qe7+ {[%emt 0:00:04]} Kg8 {[%emt 0:00:04]} 53. Qxf6 {[%emt 0:01:29]} d3 {[%emt 0:00:06]} (53... Rd7 $142 54. Qg6+ (54. Qxe5 Rbd8 $18) (54. Qxh6 Rbd8 $18) 54... Rg7 55. Qe6+ (55. Qxh6 Rxb2 56. Qc6 d3 $11) 55... Rf7 56. Qxe5 (56. Qxh6 Rxb2 57. Qe6 Rf2 $18) 56... Rd8 57. Qg3+ Kh8) 54. Qg6+ {[%emt 0:00:16]} (54. Qxe5 d2 55. Qe6+ Kf8 $11) 54... Kf8 {[%emt 0:00:22]} 55. Qxh6+ {[%emt 0:00:26]} Ke7 {[%emt 0:05:25]} 56. Qe6+ {[%emt 0:00:13]} Kf8 {[%emt 0:00:01]} 57. Qf6+ {[%emt 0:01:08]} ({Not} 57. Qxe5 d2 $14) 57... Kg8 {[%emt 0:00:27]} 58. Qe7 {[%emt 0:03:14]} ({Worse is} 58. Qxe5 d2 $11) 58... Rf8 {[%emt 0:01:50]} 59. Qg5+ {[%emt 0:00:16]} Kh8 {[%emt 0:06:24]} 60. Qh6+ {[%emt 0:00:06]} Kg8 {[%emt 0:00:01]} 61. Qg6+ {[%emt 0:00:07]} Kh8 {[%emt 0:00:15]} 62. f6 {[%emt 0:00:15]} Rb7 {[%emt 0:00:08]} 63. Qxd3 {[%emt 0:02:19]} Rxf6 {[%emt 0:00:40]} 64. Qd5 {[%emt 0:00:34]} Rxb2 {[%emt 0:01:47]} 65. Qxe5 {[%emt 0:00:16]} Rbb6 {[%emt 0:00:15]} 66. a5 {[%emt 0:00:12]} Rbe6 {[%emt 0:00:04]} 67. Qb5 {[%emt 0:00:39]} Kg7 {[%emt 0:01:06]} 68. h4 {[%emt 0:00:15]} Rd6 {[%emt 0:00:53]} 69. Kh3 {[%emt 0:00:27]} Rc6 {[%emt 0:00:35]} 70. h5 {[%emt 0:00:28]} Rfe6 {[%emt 0:06:55]} 71. g4 {[%emt 0:00:50]} Rcd6 {[%emt 0:00:14]} 72. Kh4 {[%emt 0:00:08]} Kf7 {[%emt 0:00:32]} 73. Qf5+ {[%emt 0:00:16]} Ke7 {[%emt 0:00:29]} 74. Qh7+ {[%emt 0:00:08]} Kf6 {[%emt 0:01:02]} 75. h6 {[%emt 0:01:13]} 1-0

[Event "Azerbaijan-ch 1st League 2025"]
[Site "Baku"]
[Date "2025.01.09"]
[Round "4.15"]
[White "Huseynov, Ahmed"]
[Black "Isbatov, Kanan"]
[Result "0-1"]
[Annotator "TA"]
[ECO "A34"]
[WhiteElo "1996"]
[BlackElo "1882"]
[PlyCount "66"]
[EventDate "2025.01.05"]
[EventType "swiss"]
[EventCountry "AZE"]
[SourceTitle "playchess.com"]
[Source "ChessBase"]
[SourceQuality "1"]
[TimeControl "40/5400+30:1800+30"]

{[%evp 13,66,28,34,31,37,29,42,53,45,9,2,0,0,-42,-43,-81,0,0,0,0,0,0,0,0,20,0,23,14,37,36,47,27,73,73,96,-106,-91,-86,-111,-111,104,85,85,-417,-413,-387,-393,-427,-421,-651,-663,-685,-673,-666,-662]} 1. c4 {[%emt 0:00:13]} Nf6 {[%emt 0:00:18]} 2. Nc3 {[%emt 0:00:07]} d5 {[%emt 0:00:14]} 3. cxd5 {[%emt 0:00:09]} Nxd5 {[%emt 0:00:02]} 4. g3 {[%emt 0:00:09]} g6 {[%emt 0:00:43]} 5. Bg2 {[%emt 0:00:10]} Nxc3 {[%emt 0:00:06]} 6. bxc3 {[%emt 0:00:05]} c5 {[%emt 0:00:08]} 7. Nf3 {[%emt 0:02:20]} Bg7 {[%emt 0:00:06]} 8. h4 {[%emt 0:00:24]} h5 {[%emt 0:00:38]} 9. Ng5 {[%emt 0:02:33]} O-O {[%emt 0:04:21]} 10. Rb1 {[%emt 0:01:17]} Nc6 {[%emt 0:00:17]} 11. O-O {[%emt 0:07:06]} Qc7 $1 {[%emt 0:04:49]} 12. a4 {[%emt 0:02:04]} Bf5 {[%emt 0:00:41]} 13. Rb5 {[%emt 0:03:41]} b6 {[%emt 0:05:18]} 14. a5 {[%emt 0:17:11]} Rad8 {[%emt 0:02:11]} (14... bxa5 $2 15. Rxc5 Bd7 16. d4 $18) (14... Nxa5 $1 $17 15. Bxa8 Rxa8) 15. axb6 $11 {[%emt 0:01:08]} axb6 {[%emt 0:00:02]} 16. Qb3 {[%emt 0:02:47][%cal Og2d5]} Na5 {[%emt 0:00:10]} 17. Qa2 {[%emt 0:00:27]} Bd7 {[%emt 0:02:50]} 18. Rb1 {[%emt 0:00:52]} Bg4 {[%emt 0:00:08]} 19. Re1 {[%emt 0:02:37]} c4 {[%emt 0:00:14]} 20. Ba3 {[%emt 0:10:19]} Nb3 {[%emt 0:03:45]} 21. d4 {[%emt 0:00:58]} Qa7 {[%emt 0:21:19]} 22. e3 {[%emt 0:07:21][%cal Be2e3,Be3e4][%mdl 32]} Bf5 {[%emt 0:19:05]} (22... Qa4 $11) 23. e4 $16 {[%emt 0:03:38]} Bg4 {[%emt 0:00:08]} 24. Qb2 $2 {[%emt 0:01:27] [#]} (24. e5 $16) 24... Nxd4 $1 $17 {[%emt 0:03:21][%mdl 512]} 25. cxd4 {[%emt 0:05:06]} (25. e5 Nb3) 25... Bxd4 {[%emt 0:00:06]} 26. Qa2 {[%emt 0:05:39][%cal Oe1c1] [#]} Ra8 $2 {[%emt 0:05:30] [#]} (26... b5 $1 $17 {aiming for ...Bc3.} 27. Rxb5 Ra8) 27. Qd2 $1 $16 {[%emt 0:06:58] Prevents Bc3.} (27. Qxc4 b5 28. Qc2 Qxa3 29. Rxb5 Qxg3 $19) 27... b5 {[%emt 0:19:22]} 28. Rxb5 $2 {[%emt 0:03:26][%mdl 8192]} (28. Bb4 $16 {keeps the pressure on.}) 28... c3 $1 $19 {[%emt 0:00:06]} 29. Qc2 {[%emt 0:08:58]} Qxa3 {[%emt 0:00:23]} 30. e5 {[%emt 0:00:03]} Qa2 {[%emt 0:00:23]} 31. Rc1 {[%emt 0:02:09]} (31. Be4 $142) 31... Qxc2 {[%emt 0:00:04]} 32. Rxc2 {[%emt 0:00:09]} Ra1+ {[%emt 0:00:05]} 33. Kh2 {[%emt 0:00:38]} Bd1 {[%emt 0:00:03]} 0-1

[Event "Azerbaijan-ch 1st League 2025"]
[Site "Baku"]
[Date "2025.01.09"]
[Round "4.16"]
[White "Idrisov, Tabriz"]
[Black "Gulumov, Muthat"]
[Result "1-0"]
[Annotator "TA"]
[ECO "D00"]
[WhiteElo "2073"]
[BlackElo "2054"]
[PlyCount "91"]
[EventDate "2025.01.05"]
[EventType "swiss"]
[EventCountry "AZE"]
[SourceTitle "playchess.com"]
[Source "ChessBase"]
[SourceQuality "1"]
[TimeControl "40/5400+30:1800+30"]

{[%evp 9,91,3,0,5,11,0,12,0,12,10,16,22,36,13,16,-17,0,-31,-22,-27,-17,-14,-16,-59,-26,-78,-59,-64,-17,-16,45,11,11,12,12,11,122,131,148,137,133,103,118,111,177,154,151,151,160,150,150,144,156,149,146,146,149,147,163,139,210,203,306,305,541,440,357,358,511,511,643,0,239,0,661,587,631,555,525,448,825,839,1073,661]} 1. d4 {[%emt 0:00:23]} Nf6 {[%emt 0:00:13]} 2. Bf4 {[%emt 0:00:16]} d5 {[%emt 0:00:12]} 3. e3 {[%emt 0:00:06]} e6 {[%emt 0:00:03]} 4. Bd3 {[%emt 0:00:30]} c5 {[%emt 0:00:12]} 5. c3 {[%emt 0:00:26]} Bd6 {[%emt 0:00:06]} 6. dxc5 {[%emt 0:02:05]} Bxc5 {[%emt 0:01:02]} 7. Nf3 {[%emt 0:01:09]} O-O {[%emt 0:00:23]} 8. O-O {[%emt 0:00:08] The position is equal.} Nc6 {[%emt 0:00:10]} 9. Nbd2 {[%emt 0:00:12]} Qe7 {[%emt 0:01:11] Threatens to win with ...e5.} 10. e4 {[%emt 0:05:10]} e5 {[%emt 0:08:57]} 11. Bg5 {[%emt 0:01:44]} d4 {[%emt 0:00:27]} 12. Qe2 {[%emt 0:14:50]} h6 {[%emt 0:01:04]} 13. Bh4 {[%emt 0:01:29]} dxc3 {[%emt 0:01:26]} 14. bxc3 {[%emt 0:00:09]} g5 {[%emt 0:12:05]} 15. Bg3 {[%emt 0:09:31]} Nh5 {[%emt 0:02:36]} 16. Kh1 {[%emt 0:08:00]} Rd8 {[%emt 0:03:08]} 17. Nc4 {[%emt 0:07:32]} (17. Bc4 $11) 17... g4 $17 {[%emt 0:05:45]} 18. Nfd2 {[%emt 0:09:59]} b5 {[%emt 0:14:26]} (18... a6 $15 {might be stronger.} 19. Rad1 Be6) 19. Ne3 $11 {[%emt 0:01:58]} a6 {[%emt 0:12:58]} (19... Bxe3 $11 20. Qxe3 Rb8) 20. Nf5 {[%emt 0:09:45]} (20. Nxg4 Bxg4 21. Qxg4+ Qg5 22. Qxg5+ (22. Qe2 Rxd3 23. Qxd3 Rd8 $17) 22... hxg5 $15) 20... Nxg3+ $1 {[%emt 0:05:49]} 21. fxg3 {[%emt 0:02:49]} Qg5 {[%emt 0:00:15]} 22. Nb3 $36 {[%emt 0:02:07][%mdl 2048] White has good play. A dynamic duo of knights.} Ba7 {[%emt 0:02:02]} (22... Bf8 $11 {keeps the balance.}) 23. a4 $16 {[%emt 0:01:33]} bxa4 {[%emt 0:05:10]} 24. Rxa4 {[%emt 0:00:12]} Ne7 {[%emt 0:04:18]} 25. Nxe7+ {[%emt 0:04:46]} Qxe7 {[%emt 0:00:05]} 26. Bc4 {[%emt 0:00:08] White is more active.} Be6 {[%emt 0:01:51]} (26... Rf8 $16) 27. Rxa6 {[%emt 0:01:45] Hoping for Bxe6.} Bxc4 {[%emt 0:03:15]} 28. Qxc4 {[%emt 0:00:02]} Be3 {[%emt 0:01:06] [#]} 29. Rxa8 {[%emt 0:06:42]} Rxa8 {[%emt 0:00:07]} 30. Qe2 $1 {[%emt 0:00:29][%csl LRe3,LRg4]} Bg5 {[%emt 0:01:27]} (30... Qg5 $2 31. Rf5 Qd8 32. Qxg4+ (32. Qxe3 Qd1+ 33. Qg1 Qxb3 $11) 32... Kf8 33. Qf3 $18 (33. Rxe5 Qd3)) 31. Qxg4 {[%emt 0:00:41]} Ra3 {[%emt 0:01:12]} 32. Qc8+ {[%emt 0:00:44]} Kg7 {[%emt 0:01:29] [#]} 33. Qc4 {[%emt 0:02:50]} Be3 {[%emt 0:01:20]} 34. h4 {[%emt 0:00:38]} Qb7 {[%emt 0:02:54]} (34... Qe6 $16 {is a better defense.} 35. Qd3 (35. Qxe6 fxe6 36. Rf3 h5 $18) 35... Qa6 (35... Qxb3 $2 36. Qxe3 Qxc3 37. Qb6 $18)) 35. Nc5 $18 {[%emt 0:01:58][%cal Bb3c5,Bc5d3,Bd3b4,Bb4d5][%mdl 32]} Qa7 {[%emt 0:01:24]} (35... Qc7 36. Ne6+ Kg8 37. Nxc7) (35... Qe7 $142) 36. Nd3 {[%emt 0:00:20]} f6 $2 {[%emt 0:00:32]} (36... Ra4 {was worth a try.} 37. Qb5 Ra5) 37. Nb4 {[%emt 0:01:35] Strongly threatening Nd5.} Ra1 {[%emt 0:00:27]} 38. Nd5 {[%emt 0:00:35][%cal Od5e3] Nxe3! is the strong threat.} Bf2 {[%emt 0:01:07]} (38... Bc5 {keeps fighting.} 39. Nxf6 Qa2 40. Ne8+ (40. Qxc5 $2 {is the wrong capture.} Rxf1+ 41. Kh2 Rxf6 $19) 40... Kg6) 39. Kh2 {[%emt 0:01:07] Black must now prevent Rxa1.} Bg1+ {[%emt 0:02:27]} 40. Kh1 $2 {[%emt 0:00:00]} (40. Kh3 {Rxa1 would now be deadly.} Rxf1 41. Qxf1) 40... Bf2 $1 {[%emt 0:00:00]} 41. Kh2 {[%emt 0:10:35]} (41. Ne7 Qa2 42. Qd3 (42. Nf5+ Kg6 $18) 42... Rxf1+ 43. Qxf1) 41... Bg1+ $1 {[%emt 0:08:47]} 42. Kh3 {[%emt 0:01:13][%cal Bh2h3,Bh3g4,Bg4g3][%mdl 32] And now Rxa1 would win. White is clearly winning.} h5 {[%emt 0:16:35]} 43. g4 {[%emt 0:02:38]} ({Inferior is} 43. Rxf6 Bf2 $11) 43... hxg4+ {[%emt 0:02:58]} 44. Kxg4 {[%emt 0:01:00]} Qd7+ {[%emt 0:01:57]} (44... Rxf1 $142 45. Qxf1 Bf2) 45. Kg3 {[%emt 0:01:46]} Qa7 {[%emt 0:02:12]} 46. Qe2 {[%emt 0:03:10] Weighted Error Value: White=0.38/Black=0.34.  Mistake:       	White=2     	Black=9      Inaccurate:     	White=4     	Black=1      OK:         	White=12    	Black=15     Best:        	White=7     	---        Strong:       	---       	Black=3} 1-0

[Event "Azerbaijan-ch 1st League 2025"]
[Site "Baku"]
[Date "2025.01.09"]
[Round "4.17"]
[White "Safarli, Ramzi"]
[Black "Baghirov, Mahammad"]
[Result "1/2-1/2"]
[Annotator "TA"]
[ECO "E61"]
[WhiteElo "1792"]
[BlackElo "1932"]
[PlyCount "120"]
[EventDate "2025.01.05"]
[EventType "swiss"]
[EventCountry "AZE"]
[SourceTitle "playchess.com"]
[Source "ChessBase"]
[SourceQuality "1"]
[TimeControl "40/5400+30:1800+30"]

{[%evp 13,120,-8,0,0,28,0,0,0,34,37,35,24,51,53,110,98,89,95,154,164,192,70,105,46,49,84,76,95,79,89,97,79,92,95,92,79,80,86,79,83,120,97,102,92,98,103,101,98,95,75,91,86,126,75,111,0,127,0,117,111,118,89,72,79,79,79,100,79,133,78,68,43,43,43,44,0,0,0,47,50,50,0,87,0,105,61,61,61,61,53,54,54,54,46,46,46,54,0,0,0,0,0,0,0,0,0,124,0,228]} 1. d4 {[%emt 0:01:37]} Nf6 {[%emt 0:00:07]} 2. c4 {[%emt 0:00:03]} g6 {[%emt 0:00:07]} 3. Nc3 {[%emt 0:00:06]} Bg7 {[%emt 0:00:05]} 4. g3 {[%emt 0:00:02]} O-O {[%emt 0:00:12]} 5. Bg2 {[%emt 0:00:03]} d6 {[%emt 0:00:08]} 6. e3 {[%emt 0:00:08]} e5 {[%emt 0:00:17]} 7. Nge2 {[%emt 0:00:04]} Re8 {[%emt 0:00:36]} 8. h3 {[%emt 0:00:08]} Nc6 {[%emt 0:00:21]} 9. O-O {[%emt 0:00:08]} exd4 {[%emt 0:01:58]} 10. exd4 {[%emt 0:00:07]} Bf5 {[%emt 0:00:42]} 11. g4 {[%emt 0:00:07]} Bd7 {[%emt 0:00:07]} 12. Ng3 {[%emt 0:00:18]} Rb8 {[%emt 0:01:51]} 13. Be3 {[%emt 0:00:37]} Kh8 {[%emt 0:01:50]} (13... Qc8 $14) 14. Qd2 {[%emt 0:01:11]} a6 {[%emt 0:00:59]} 15. Rac1 {[%emt 0:00:55]} b5 {[%emt 0:02:42]} ({Black should play} 15... Ne7) 16. cxb5 $1 $16 {[%emt 0:01:17]} axb5 {[%emt 0:00:05] [#]} 17. Nce2 {[%emt 0:00:48]} (17. Nd5 $1 $18 {[%cal Rd5f6]}) 17... Ne7 {[%emt 0:01:08]} 18. Bg5 {[%emt 0:00:59]} (18. d5 $16) 18... c6 $14 {[%emt 0:02:38]} 19. Nc3 {[%emt 0:05:46]} Be6 {[%emt 0:06:21]} 20. Nce4 {[%emt 0:40:05]} Nxe4 {[%emt 0:06:38]} 21. Nxe4 {[%emt 0:00:36]} Bd5 {[%emt 0:17:54][%cal Od5e4]} 22. Nf6 {[%emt 0:01:00]} Bxg2 {[%emt 0:00:07]} 23. Kxg2 {[%emt 0:00:12]} (23. Rfe1 Rf8 24. Nxh7 Kxh7 25. Bxe7 Qd7 26. Bxf8 Bxh3 27. Rc3) 23... Rf8 {[%emt 0:00:55][%cal Oh7h6]} 24. Qf4 {[%emt 0:01:44]} Qc7 {[%emt 0:06:43]} 25. Rfe1 {[%emt 0:07:44]} Ra8 {[%emt 0:02:25] Black is weak on the dark squares} 26. a3 {[%emt 0:14:25]} Rac8 {[%emt 0:04:36]} 27. b4 {[%emt 0:01:28][%cal Od4d5] White has more active pieces.} Ng8 {[%emt 0:03:25] [#]} 28. Nxg8 $1 {[%emt 0:01:30]} Kxg8 {[%emt 0:00:06]} 29. Be7 {[%emt 0:00:44][%cal Oe7d6]} Rfe8 {[%emt 0:01:56]} 30. Bxd6 {[%emt 0:00:22]} Qd7 {[%emt 0:02:19]} 31. Bc5 {[%emt 0:06:17]} (31. Be5 {feels hotter.} Qd5+ 32. Kg3 Rcd8 33. Rc5) 31... h6 {[%emt 0:02:08]} 32. Qf3 {[%emt 0:03:38]} Kh7 {[%emt 0:00:49]} 33. Bb6 {[%emt 0:01:42]} ({White should play} 33. Rxe8 Rxe8 34. Ra1) 33... Rf8 {[%emt 0:02:55][%cal Of7f5]} 34. Bc5 {[%emt 0:00:30]} Rfe8 {[%emt 0:00:08]} 35. Bb6 {[%emt 0:01:19]} (35. Rxe8 $16 Rxe8 36. Rd1) 35... Kg8 {[%emt 0:01:24]} (35... Rf8 $1 $11) 36. Rxe8+ $16 {[%emt 0:00:45]} Qxe8 {[%emt 0:00:06]} 37. d5 {[%emt 0:00:35]} cxd5 {[%emt 0:00:26]} 38. Rxc8 {[%emt 0:00:03]} Qxc8 {[%emt 0:00:05]} 39. Qxd5 {[%emt 0:00:02][%mdl 4096] Endgame KQB-KQB. White is a pawn up.} Qb8 {[%emt 0:03:15]} 40. Bc5 {[%emt 0:00:00]} (40. Qxb5 $2 Bd4 41. a4 Bxb6 $19 (41... Qxb6 42. Qxb6 Bxb6 43. a5 $17)) 40... Bb2 {[%emt 0:00:00]} (40... Qe8 $142) 41. Qf3 {[%emt 0:11:54]} (41. Qc6 $142) 41... Qe8 {[%emt 0:02:43]} 42. h4 {[%emt 0:01:00][%cal Bh3h4,Bh4h5][%mdl 32]} Qe6 {[%emt 0:01:02]} 43. h5 {[%emt 0:00:32]} Bg7 {[%emt 0:01:24]} 44. Qa8+ {[%emt 0:02:36]} Kh7 {[%emt 0:00:16]} 45. Qf3 {[%emt 0:00:21]} Qc4 {[%emt 0:03:50]} (45... Kg8 $1 $11) 46. Be3 {[%emt 0:07:51]} Qe6 {[%emt 0:01:01]} 47. Bc5 {[%emt 0:00:07]} (47. Kh2 $14) 47... Qe8 {[%emt 0:06:10]} (47... Kg8 $11) 48. Be3 {[%emt 0:03:48]} (48. Qd3 $16) 48... Kh8 {[%emt 0:04:19]} (48... Qe6 $1 $11) 49. g5 {[%emt 0:01:36]} hxg5 {[%emt 0:01:37]} 50. hxg6 {[%emt 0:00:42]} fxg6 {[%emt 0:00:11]} 51. Bxg5 {[%emt 0:00:07]} Qe6 {[%emt 0:02:05]} 52. Be3 {[%emt 0:04:02]} Kg8 {[%emt 0:01:33]} 53. Bc5 {[%emt 0:00:19]} Qf5 {[%emt 0:00:40]} 54. Qb3+ {[%emt 0:02:17]} Kh7 {[%emt 0:01:24]} 55. a4 {[%emt 0:01:05]} (55. Kf1 $14) 55... Qg5+ {[%emt 0:04:28]} 56. Kf1 {[%emt 0:00:27]} Qc1+ {[%emt 0:00:22]} 57. Kg2 {[%emt 0:00:04]} bxa4 {[%emt 0:00:17]} 58. Qxa4 {[%emt 0:00:08]} Qg5+ {[%emt 0:00:13]} 59. Kf1 {[%emt 0:00:01]} Qd5 {[%emt 0:00:54] Prevents Qa2.} (59... Qc1+ $11 {remains equal.} 60. Kg2 Qg5+ 61. Kf1 Qc1+) 60. Kg1 {[%emt 0:00:16]} (60. Qe8 $16) 60... Qd3 $2 {[%emt 0:06:27]} (60... Qg5+ $1 $11 {and Black stays safe.} 61. Kf1 Qc1+ 62. Kg2 Qg5+ 63. Kf1) 1/2-1/2

[Event "Azerbaijan-ch 1st League 2025"]
[Site "Baku"]
[Date "2025.01.09"]
[Round "4.18"]
[White "Imranli, Kenan"]
[Black "Kazimzade, Mahammad"]
[Result "0-1"]
[Annotator "NA RC COMBH"]
[ECO "C78"]
[WhiteElo "1758"]
[BlackElo "1743"]
[PlyCount "102"]
[EventDate "2025.01.05"]
[EventType "swiss"]
[EventCountry "AZE"]
[SourceTitle "playchess.com"]
[Source "ChessBase"]
[SourceQuality "1"]
[TimeControl "40/5400+30:1800+30"]

1. e4 {[%emt 0:02:08]} e5 {[%emt 0:00:26]} 2. Nf3 {[%emt 0:00:16]} Nc6 {[%emt 0:00:10]} 3. Bb5 {[%emt 0:01:23]} a6 {[%emt 0:00:42]} 4. Ba4 {[%emt 0:00:08]} Nf6 {[%emt 0:00:41]} 5. d3 {[%emt 0:00:15]} b5 {[%emt 0:00:44]} 6. Bb3 {[%emt 0:00:09]} Bc5 {[%emt 0:00:25]} 7. O-O {[%emt 0:00:23]} O-O {[%emt 0:07:04]} 8. Bg5 {[%emt 0:02:00]} Be7 {[%emt 0:01:00]} 9. c3 {[%emt 0:03:34]} d6 {[%emt 0:02:26]} 10. Nbd2 {[%emt 0:00:38]} h6 {[%emt 0:00:28]} 11. Bxf6 {[%emt 0:00:29]} Bxf6 {[%emt 0:00:07]} 12. Re1 {[%emt 0:01:24]} Ne7 {[%emt 0:08:45]} 13. Nf1 {[%emt 0:04:11]} Ng6 {[%emt 0:00:26]} 14. Ne3 {[%emt 0:10:07]} c6 {[%emt 0:04:26]} 15. d4 {[%emt 0:00:38]} exd4 {[%emt 0:00:53]} 16. cxd4 {[%emt 0:00:19]} c5 {[%emt 0:01:19]} 17. Qd2 {[%emt 0:03:28]} Bb7 {[%emt 0:02:27]} 18. Bd5 {[%emt 0:02:59]} Qb6 {[%emt 0:02:44]} 19. Bxb7 {[%emt 0:03:02]} Qxb7 {[%emt 0:00:15]} 20. Nd5 {[%emt 0:00:08]} Bd8 {[%emt 0:01:07]} 21. Rac1 {[%emt 0:04:49]} Rc8 {[%emt 0:02:54]} 22. dxc5 {[%emt 0:01:09]} dxc5 {[%emt 0:00:09]} 23. Qe3 {[%emt 0:04:51]} Ba5 {[%emt 0:03:39]} 24. Red1 {[%emt 0:01:12]} c4 {[%emt 0:00:51]} 25. h4 {[%emt 0:04:42]} Rfe8 {[%emt 0:02:48]} 26. h5 {[%emt 0:05:26]} Ne7 {[%emt 0:00:35]} 27. Qf4 {[%emt 0:01:04]} Nxd5 {[%emt 0:04:19]} 28. exd5 {[%emt 0:00:34]} Rcd8 {[%emt 0:04:39]} 29. d6 {[%emt 0:05:38]} Re6 {[%emt 0:15:41]} 30. Nh4 {[%emt 0:05:04]} Qe4 {[%emt 0:04:19]} 31. Qg3 {[%emt 0:03:30]} Rf6 {[%emt 0:18:24]} 32. Nf3 {[%emt 0:00:48]} Bb6 {[%emt 0:00:48]} 33. Rd2 {[%emt 0:07:09]} Qf5 {[%emt 0:04:28]} 34. Re1 {[%emt 0:03:38]} Ba5 {[%emt 0:01:08]} 35. Re5 {[%emt 0:00:21]} Qb1+ {[%emt 0:00:06]} 36. Kh2 {[%emt 0:01:18]} Bxd2 {[%emt 0:00:33]} 37. Nxd2 {[%emt 0:00:07]} Qd3 {[%emt 0:01:19]} 38. Nf3 {[%emt 0:01:06]} Qxd6 {[%emt 0:00:56]} 39. Nh4 {[%emt 0:01:52]} Re6 {[%emt 0:01:18]} 40. f4 {[%emt 0:00:00]} Rxe5 {[%emt 0:00:00]} 41. fxe5 {[%emt 0:00:25]} Qd3 {[%emt 0:00:29]} 42. Qg4 {[%emt 0:00:17]} Qd4 {[%emt 0:00:19]} 43. Qg3 {[%emt 0:00:34]} Qd1 {[%emt 0:01:03]} 44. Nf3 {[%emt 0:02:45]} b4 {[%emt 0:01:08]} 45. e6 {[%emt 0:01:25]} fxe6 {[%emt 0:00:17]} 46. Qg6 {[%emt 0:00:09]} Qd6+ {[%emt 0:00:20]} 47. g3 {[%emt 0:00:18]} c3 {[%emt 0:00:15]} 48. bxc3 {[%emt 0:00:29]} bxc3 {[%emt 0:00:08]} 49. Kh3 {[%emt 0:01:01]} Qd5 {[%emt 0:00:09]} 50. Nh4 {[%emt 0:00:16]} Qh1+ {[%emt 0:00:06]} 51. Kg4 {[%emt 0:00:08]} Rd4+ {[%emt 0:00:04]} 0-1